bitfinex-derivatives/quotes_BTCF0:USTF0_20240907
["timestamp","ask_amount","ask_price","bid_price","bid_amount"]
[1725724715349,0.087227,54811.0,54810.0,0.002]
[1725724715753,0.091229,54810.0,54808.0,0.16375786]
[1725724716062,0.048,54814.0,54808.0,0.16375786]
[1725724716262,0.048,54814.0,54811.0,0.05443169]
[1725724716464,0.091227,54811.0,54810.0,0.05443169]
[1725724716662,0.091227,54811.0,54810.0,0.05543169]
[1725724717561,0.088227,54811.0,54810.0,0.05443169]
[1725724718765,0.091228,54810.0,54809.0,0.05443169]
[1725724719557,0.090228,54810.0,54809.0,0.05443169]
[1725724720566,0.090228,54810.0,54809.0,0.05743169]
[1725724721161,0.090228,54810.0,54809.0,0.05843169]
[1725724721852,0.090228,54810.0,54809.0,0.14966169]
[1725724722667,0.048,54814.0,54813.0,0.091223]
[1725724722864,0.091216,54818.0,54817.0,0.091216]
[1725724724361,0.091216,54818.0,54817.0,0.10834744]
[1725724725061,0.281216,54818.0,54817.0,0.091216]
[1725724725269,0.19,54818.0,54814.0,0.05443169]
[1725724725452,0.01704584,54820.0,54814.0,0.14565369]
[1725724725453,0.28122,54815.0,54814.0,0.14565369]
[1725724726668,0.28122,54815.0,54814.0,0.14965369]
[1725724727864,0.09122,54815.0,54814.0,0.14965369]
[1725724733172,0.09122,54815.0,54814.0,0.14565369]
[1725724733357,0.09122,54815.0,54814.0,0.095222]
[1725724734160,0.09122,54815.0,54814.0,0.094222]
[1725724736265,0.09122,54815.0,54814.0,0.16674886]
[1725724736768,0.09122,54815.0,54814.0,0.094222]
[1725724737273,0.09122,54815.0,54814.0,0.16674886]
[1725724738159,0.091213,54819.0,54818.0,0.091214]
[1725724738363,0.091209,54822.0,54818.0,0.07252686]
[1725724738667,0.091209,54822.0,54821.0,0.05448343]
[1725724739767,0.091209,54822.0,54821.0,0.14569343]
[1725724739963,0.091209,54822.0,54815.0,0.13647401]
[1725724739964,0.091212,54820.0,54819.0,0.05448343]
[1725724740974,0.091212,54820.0,54819.0,0.14569643]
[1725724742174,0.092212,54820.0,54819.0,0.14569643]
[1725724744774,0.001,54820.0,54819.0,0.091213]
[1725724750276,0.001,54820.0,54819.0,0.14568006]
[1725724750881,0.092212,54820.0,54819.0,0.14568006]
[1725724751681,0.001,54820.0,54819.0,0.14568006]
[1725724751872,0.001,54820.0,54819.0,0.091213]
[1725724752191,0.092212,54820.0,54819.0,0.091213]
[1725724753070,0.091213,54819.0,54818.0,0.07252686]
[1725724753275,0.329813,54819.0,54818.0,0.07252686]
[1725724754785,0.2386,54819.0,54816.0,0.091218]
[1725724754990,0.2386,54819.0,54818.0,0.072636]
[1725724755991,0.329813,54819.0,54818.0,0.072636]
[1725724756489,0.091217,54817.0,54816.0,0.163854]
[1725724756689,0.091217,54817.0,54816.0,0.165854]
[1725724756984,0.091217,54817.0,54816.0,0.16587011]
[1725724758385,0.091217,54817.0,54816.0,0.16387011]
[1725724759090,0.091217,54817.0,54816.0,0.16487011]
[1725724760084,0.10848888,54817.0,54816.0,0.16487011]
[1725724762290,0.091217,54817.0,54816.0,0.16487011]
[1725724762591,0.091217,54817.0,54816.0,0.092218]
[1725724769288,0.091217,54817.0,54816.0,0.091218]
[1725724769488,0.091217,54817.0,54816.0,0.093218]
[1725724771090,0.091217,54817.0,54816.0,0.092218]
[1725724779497,0.091217,54817.0,54816.0,0.18279201]
[1725724782202,0.091217,54817.0,54816.0,0.09157401]
[1725724782398,0.091217,54817.0,54816.0,0.001]
[1725724782805,0.091217,54817.0,54816.0,0.07368685]
[1725724788208,0.091217,54817.0,54816.0,0.001]
[1725724789813,0.091217,54817.0,54816.0,0.092218]
[1725724790211,0.191217,54817.0,54816.0,0.001]
[1725724790417,0.282434,54817.0,54816.0,0.001]
[1725724793009,0.282434,54817.0,54816.0,0.05547192]
[1725724793209,0.282434,54817.0,54816.0,0.001]
[1725724794414,0.282434,54817.0,54816.0,0.055479]
[1725724796015,0.182434,54817.0,54816.0,0.055479]
[1725724796314,0.282434,54817.0,54816.0,0.055479]
[1725724800727,0.282434,54817.0,54816.0,0.19348087]
[1725724800728,0.04558154,54817.0,54816.0,0.19348087]
[1725724801485,0.13679854,54817.0,54816.0,0.19348087]
[1725724801816,0.04558154,54817.0,54816.0,0.19348087]
[1725724802412,0.04558154,54817.0,54816.0,0.13900562]
[1725724803321,0.091216,54818.0,54812.0,0.091225]
[1725724803519,0.091211,54821.0,54808.0,0.01739067]
[1725724803719,0.091211,54821.0,54806.0,0.0488]
[1725724804515,0.01728062,54822.0,54821.0,0.09121]
[1725724804716,0.091208,54822.0,54821.0,0.09121]
[1725724804921,0.0498,54834.0,54829.0,0.091196]
[1725724805117,0.06640026,54834.0,54812.0,0.0523]
[1725724805322,0.091217,54817.0,54815.0,0.0493]
[1725724805620,0.091206,54824.0,54816.0,0.00897286]
[1725724805919,0.005,54822.0,54816.0,0.00897286]
[1725724806123,0.005,54822.0,54816.0,0.05457286]
[1725724806423,0.005,54822.0,54820.0,0.091211]
[1725724806618,0.005,54822.0,54821.0,0.09121]
[1725724807217,0.005,54822.0,54821.0,0.19121]
[1725724807625,0.417695,54830.0,54827.0,0.0912]
[1725724807826,0.091195,54830.0,54827.0,0.0912]
[1725724808816,0.191195,54830.0,54827.0,0.0912]
[1725724809427,0.091195,54830.0,54824.0,0.1]
[1725724809726,0.012,54830.0,54829.0,0.091197]
[1725724810119,0.0105,54830.0,54829.0,0.091197]
[1725724811223,0.048,54832.0,54831.0,0.091193]
[1725724811911,0.01720026,54834.0,54833.0,0.09119]
[1725724812118,0.01720026,54834.0,54833.0,0.0544143]
[1725724812119,0.1,54834.0,54833.0,0.0544143]
[1725724812317,1.24712,54834.0,54833.0,0.05441326]
[1725724812829,1.429496,54834.0,54833.0,0.05441326]
[1725724813016,0.091195,54830.0,54829.0,0.001]
[1725724813320,0.191195,54830.0,54829.0,0.001]
[1725724814317,0.191195,54830.0,54829.0,0.05541326]
[1725724814520,0.191195,54830.0,54829.0,0.05441326]
[1725724814821,0.190195,54830.0,54828.0,0.05441326]
[1725724815021,0.190195,54830.0,54829.0,0.05441326]
[1725724815524,0.199195,54830.0,54829.0,0.05541326]
[1725724815829,0.199195,54830.0,54829.0,0.001]
[1725724816229,1.43755,54830.0,54829.0,0.001]
[1725724816727,1.45466147,54830.0,54829.0,0.001]
[1725724818725,0.87193998,54830.0,54829.0,0.001]
[1725724819128,1.47193998,54830.0,54829.0,0.001]
[1725724820030,1.56193998,54830.0,54829.0,0.001]
[1725724820232,0.09121,54821.0,54820.0,0.05444068]
[1725724820537,0.09121,54821.0,54817.0,0.05444068]
[1725724820825,0.091217,54817.0,54814.0,0.140722]
[1725724821431,0.091217,54817.0,54814.0,0.21328059]
[1725724821628,0.091217,54817.0,54815.0,0.07255859]
[1725724822237,0.091217,54817.0,54815.0,0.16377759]
[1725724822821,0.091217,54817.0,54815.0,0.091219]
[1725724823222,0.416695,54830.0,54819.0,0.091212]
[1725724823223,0.281208,54823.0,54819.0,0.091212]
[1725724823419,0.3265,54830.0,54822.0,0.19]
[1725724823623,0.057046,54837.0,54829.0,0.05444011]
[1725724823822,0.057046,54837.0,54823.0,0.0496]
[1725724823823,0.091188,54835.0,54831.0,0.19]
[1725724824029,0.091181,54839.0,54831.0,0.24444011]
[1725724824326,0.091181,54839.0,54833.0,0.05444011]
[1725724824921,0.091181,54839.0,54835.0,0.091186]
[1725724825331,0.091181,54839.0,54836.0,0.54708]
[1725724825630,0.091165,54848.0,54844.0,0.091171]
[1725724825832,0.091165,54848.0,54845.0,0.0466]
[1725724826027,0.01710738,54847.0,54845.0,0.0466]
[1725724826625,0.091167,54847.0,54845.0,0.0466]
[1725724826930,0.19,54846.0,54837.0,0.05444011]
[1725724827228,0.091177,54841.0,54836.0,0.092185]
[1725724827635,0.091179,54840.0,54836.0,0.001]
[1725724828139,0.090179,54840.0,54834.0,0.14562811]
[1725724828635,0.091186,54836.0,54832.0,0.10104011]
[1725724829023,0.089186,54836.0,54832.0,0.0466]
[1725724830430,0.091187,54835.0,54832.0,0.0466]
[1725724830625,0.19,54838.0,54832.0,0.0466]
[1725724830832,0.19,54838.0,54830.0,0.137695]
[1725724831034,0.19,54834.0,54832.0,0.007]
[1725724832333,0.091192,54832.0,54828.0,0.05444011]
[1725724832638,0.091195,54830.0,54828.0,0.05444011]
[1725724832838,0.091197,54829.0,54827.0,0.19154011]
[1725724833034,0.19,54830.0,54825.0,0.37598997]
[1725724833429,0.281202,54827.0,54825.0,0.37598997]
[1725724834731,0.091202,54827.0,54825.0,0.37598997]
[1725724835133,0.091202,54827.0,54825.0,0.37698997]
[1725724835938,0.091202,54827.0,54825.0,0.43243008]
[1725724836341,0.091202,54827.0,54825.0,0.37798997]
[1725724837342,0.281202,54826.0,54825.0,0.37798997]
[1725724837535,0.281202,54826.0,54825.0,0.002]
[1725724838250,0.089204,54825.0,54823.0,0.05444011]
[1725724838634,0.089204,54825.0,54822.0,0.14564811]
[1725724838831,0.089204,54825.0,54823.0,0.14564711]
[1725724840648,0.089204,54825.0,54824.0,0.091205]
[1725724841342,0.091193,54832.0,54825.0,0.091202]
[1725724841343,0.091198,54829.0,54825.0,0.091202]
[1725724841647,0.091199,54828.0,54825.0,0.14564211]
[1725724841948,0.091199,54828.0,54826.0,0.05444011]
[1725724842449,0.01704716,54834.0,54828.0,0.091197]
[1725724842450,0.091194,54831.0,54828.0,0.091197]
[1725724842645,0.10823516,54834.0,54830.0,0.19]
[1725724842952,0.10823516,54834.0,54833.0,0.09119]
[1725724844654,0.11623516,54834.0,54833.0,0.09119]
[1725724845448,0.11023516,54834.0,54833.0,0.09119]
[1725724846135,0.10823516,54834.0,54833.0,0.09119]
[1725724847038,0.091183,54838.0,54834.0,0.091187]
[1725724847239,0.19,54840.0,54836.0,0.091184]
[1725724847240,0.091181,54839.0,54836.0,0.091184]
[1725724847641,0.091182,54838.0,54836.0,0.091184]
[1725724847846,0.091182,54838.0,54834.0,0.05444011]
[1725724848145,0.091187,54835.0,54833.0,0.09119]
[1725724848656,0.093182,54838.0,54834.0,0.091188]
[1725724849046,0.091182,54838.0,54834.0,0.091188]
[1725724849254,0.091183,54837.0,54834.0,0.091188]
[1725724849442,0.091183,54837.0,54831.0,0.094]
[1725724849443,0.091183,54837.0,54835.0,0.091187]
[1725724851155,0.091185,54836.0,54835.0,0.091187]
[1725724851541,0.091185,54836.0,54835.0,0.14562711]
[1725724852753,0.093185,54836.0,54835.0,0.14562711]
[1725724853055,0.093185,54836.0,54835.0,0.091187]
[1725724855861,0.093185,54836.0,54835.0,0.16374559]
[1725724857155,0.091185,54836.0,54835.0,0.16374559]
[1725724857451,0.092185,54836.0,54835.0,0.16374559]
[1725724857956,0.091185,54836.0,54835.0,0.16374559]
[1725724858258,0.091185,54836.0,54835.0,0.16674559]
[1725724858958,0.091185,54836.0,54835.0,0.16574559]
[1725724860353,0.18237,54836.0,54835.0,0.002]
[1725724860548,0.19,54837.0,54826.0,0.16375959]
[1725724860864,0.0912,54827.0,54826.0,0.16375959]
[1725724861153,0.089202,54826.0,54825.0,0.0725242]
[1725724861358,0.04357381,54826.0,54825.0,0.0725242]
[1725724861655,0.04357381,54826.0,54819.0,0.20703372]
[1725724861656,0.04357381,54826.0,54823.0,0.09069824]
[1725724861858,0.04357381,54826.0,54819.0,0.0981]
[1725724861859,0.04057381,54826.0,54825.0,0.091203]
[1725724862770,0.0461,54830.0,54826.0,0.091201]
[1725724862771,0.137296,54830.0,54826.0,0.091201]
[1725724863057,0.0461,54830.0,54829.0,0.091197]
[1725724863462,0.137295,54830.0,54829.0,0.091197]
[1725724864555,0.138295,54830.0,54829.0,0.091197]
[1725724868065,0.0912,54827.0,54826.0,0.07250422]
[1725724868455,0.091202,54826.0,54825.0,0.07250422]
[1725724870661,0.089202,54826.0,54825.0,0.07250422]
[1725724871573,0.091202,54826.0,54825.0,0.07250422]
[1725724872562,0.091202,54826.0,54825.0,0.091203]
[1725724874462,0.091202,54826.0,54822.0,0.18190624]
[1725724874463,0.091207,54823.0,54822.0,0.18190624]
[1725724874662,0.002,54826.0,54819.0,0.189312]
[1725724874959,0.091207,54823.0,54822.0,0.07253798]
[1725724875765,0.091207,54823.0,54821.0,0.07253798]
[1725724876266,0.091207,54823.0,54821.0,0.16374798]
[1725724876462,0.091207,54823.0,54821.0,0.09121]
[1725724876667,0.091207,54823.0,54822.0,0.001]
[1725724877368,0.091208,54822.0,54821.0,0.0543793]
[1725724877670,0.091208,54822.0,54821.0,0.001]
[1725724877671,0.281208,54822.0,54821.0,0.001]
[1725724878054,0.372416,54822.0,54821.0,0.001]
[1725724878262,0.281208,54822.0,54816.0,0.05438063]
[1725724878459,0.281208,54822.0,54817.0,0.05438063]
[1725724878661,0.091217,54817.0,54816.0,0.05438063]
[1725724878956,0.091217,54817.0,54816.0,0.05437782]
[1725724879175,0.281208,54822.0,54815.0,0.05437782]
[1725724879176,0.091218,54816.0,54815.0,0.05437782]
[1725724879372,0.09122,54815.0,54814.0,0.05437782]
[1725724880157,0.09022,54815.0,54813.0,0.05437782]
[1725724880968,0.09022,54815.0,54814.0,0.001]
[1725724883368,0.09022,54815.0,54813.0,0.05637782]
[1725724883565,0.091222,54814.0,54813.0,0.05637782]
[1725724883765,0.091222,54814.0,54807.0,0.05437782]
[1725724883766,0.281222,54814.0,54807.0,0.05437782]
[1725724883977,0.091235,54806.0,54804.0,0.05437782]
[1725724884271,0.091235,54806.0,54803.0,0.05437782]
[1725724884770,0.091235,54806.0,54804.0,0.05437782]
[1725724884962,0.091235,54806.0,54803.0,0.05437782]
[1725724885162,0.090235,54806.0,54804.0,0.091238]
[1725724886080,0.139023,54813.0,54809.0,0.091229]
[1725724886261,0.091217,54817.0,54811.0,0.19]
[1725724886577,0.091217,54817.0,54815.0,0.28122]
[1725724886765,0.091217,54817.0,54815.0,0.19]
[1725724887575,0.140518,54816.0,54815.0,0.19]
[1725724887874,0.15779537,54816.0,54815.0,0.19]
[1725724888358,0.15379537,54816.0,54815.0,0.19]
[1725724888563,0.15479537,54816.0,54815.0,0.19]
[1725724889964,0.15379537,54816.0,54813.0,0.091223]
[1725724890165,0.15579537,54816.0,54813.0,0.091223]
[1725724891171,0.15379537,54816.0,54813.0,0.091223]
[1725724891675,0.091221,54815.0,54813.0,0.091223]
[1725724895881,0.091222,54814.0,54813.0,0.091223]
[1725724896375,0.091223,54813.0,54812.0,0.2358]
[1725724896677,0.06257737,54816.0,54811.0,0.14560382]
[1725724896874,0.091225,54813.0,54811.0,0.14560382]
[1725724897471,0.091222,54814.0,54812.0,0.19]
[1725724897668,0.091214,54819.0,54813.0,0.05437782]
[1725724897879,0.091219,54816.0,54814.0,0.14559882]
[1725724898276,0.091219,54816.0,54815.0,0.05437782]
[1725724899172,0.091219,54816.0,54814.0,0.091221]
[1725724899173,0.09122,54815.0,54814.0,0.14559882]
[1725724899879,0.09122,54815.0,54814.0,0.091221]
[1725724900377,0.09222,54815.0,54814.0,0.091221]
[1725724901172,0.09322,54815.0,54814.0,0.091221]
[1725724902074,0.091222,54814.0,54813.0,0.07253798]
[1725724902977,0.091222,54814.0,54807.0,0.0479]
[1725724902978,0.091223,54813.0,54812.0,0.07253798]
[1725724903174,0.091228,54810.0,54809.0,0.09066871]
[1725724903488,0.091228,54810.0,54808.0,0.09066871]
[1725724903876,0.09123,54809.0,54808.0,0.09066871]
[1725724904181,0.09123,54809.0,54808.0,0.22968909]
[1725724904575,0.09123,54809.0,54808.0,0.004]
[1725724905176,0.09123,54809.0,54808.0,0.095232]
[1725724906284,0.04558919,54809.0,54808.0,0.32492263]
[1725724907888,0.06338895,54809.0,54808.0,0.32492263]
[1725724908685,0.06338895,54809.0,54808.0,0.23369063]
[1725724908893,0.06338895,54809.0,54808.0,0.004]
[1725724910804,0.06338895,54809.0,54808.0,0.095232]
[1725724911290,0.04558919,54809.0,54808.0,0.095232]
[1725724913782,0.04558919,54809.0,54808.0,0.07660729]
[1725724914386,0.04558919,54809.0,54808.0,0.07660121]
[1725724914586,0.04558919,54809.0,54808.0,0.004]
[1725724914994,0.04558919,54809.0,54808.0,0.0584543]
[1725724915996,0.04658919,54809.0,54808.0,0.0544543]
[1725724918298,0.091232,54808.0,54807.0,0.0544543]
[1725724920487,0.091235,54806.0,54805.0,0.07260121]
[1725724922196,0.088237,54805.0,54804.0,0.07260121]
[1725724922692,0.088237,54805.0,54799.0,0.1083836]
[1725724922892,0.01723385,54810.0,54798.0,0.09066871]
[1725724922893,0.19,54800.0,54798.0,0.09066871]
[1725724923191,0.091248,54798.0,54796.0,0.091251]
[1725724923401,0.09125,54797.0,54796.0,0.091251]
[1725724924293,0.048,54799.0,54795.0,0.0457]
[1725724924592,0.048,54799.0,54798.0,0.091248]
[1725724925196,0.091239,54804.0,54802.0,0.091241]
[1725724925397,0.091239,54804.0,54802.0,0.14564783]
[1725724925597,0.09124,54803.0,54802.0,0.14564493]
[1725724925900,0.09124,54803.0,54802.0,0.14564845]
[1725724926098,0.091238,54804.0,54802.0,0.091241]
[1725724926297,0.0467,54806.0,54802.0,0.091241]
[1725724926596,0.0467,54806.0,54802.0,0.14564539]
[1725724926800,0.004,54803.0,54802.0,0.091241]
[1725724927197,0.004,54803.0,54802.0,0.14564606]
[1725724927388,0.004,54803.0,54802.0,0.091241]
[1725724927894,0.09524,54803.0,54802.0,0.091241]
[1725724928501,0.09124,54803.0,54802.0,0.091241]
[1725724928700,0.09124,54803.0,54802.0,0.14563561]
[1725724928999,0.09124,54803.0,54802.0,0.091241]
[1725724929200,0.09524,54803.0,54802.0,0.091241]
[1725724929699,0.004,54803.0,54802.0,0.091241]
[1725724932499,0.09524,54803.0,54802.0,0.091241]
[1725724934693,0.09524,54803.0,54802.0,0.16378344]
[1725724934888,0.09524,54803.0,54802.0,0.091241]
[1725724935392,0.09124,54803.0,54802.0,0.16378344]
[1725724937094,0.09124,54803.0,54802.0,0.091241]
[1725724939306,0.09324,54803.0,54802.0,0.091241]
[1725724939706,0.09324,54803.0,54802.0,0.16378344]
[1725724941207,0.09324,54803.0,54802.0,0.091241]
[1725724941908,0.09224,54803.0,54802.0,0.091241]
[1725724944092,0.091243,54801.0,54800.0,0.09066871]
[1725724944501,0.091247,54799.0,54797.0,0.09066871]
[1725724946102,0.091247,54799.0,54798.0,0.09066871]
[1725724946598,0.091247,54799.0,54798.0,0.22972041]
[1725724946795,0.091247,54799.0,54798.0,0.22979013]
[1725724947001,0.091247,54799.0,54798.0,0.2302997]
[1725724948615,0.091247,54799.0,54798.0,0.4202997]
[1725724949706,0.091247,54799.0,54798.0,0.1390517]
[1725724949903,0.091247,54799.0,54798.0,0.22980148]
[1725724950418,0.091247,54799.0,54798.0,0.09074978]
[1725724950807,0.091248,54798.0,54797.0,0.09074978]
[1725724951009,0.091248,54798.0,54797.0,0.22980085]
[1725724952309,0.092248,54798.0,54797.0,0.22980085]
[1725724952615,0.092248,54798.0,54797.0,0.07263572]
[1725724952910,0.091248,54798.0,54797.0,0.07263572]
[1725724953107,0.094248,54798.0,54797.0,0.07263572]
[1725724953301,0.094248,54798.0,54796.0,0.07263572]
[1725724955201,0.092248,54798.0,54795.0,0.07263572]
[1725724956011,0.001,54798.0,54795.0,0.07263572]
[1725724956414,0.0454,54797.0,54795.0,0.07263572]
[1725724956915,0.091252,54796.0,54795.0,0.07263572]
[1725724957612,0.091252,54796.0,54794.0,0.07263572]
[1725724957916,0.091253,54795.0,54794.0,0.07263572]
[1725724958309,0.091255,54794.0,54793.0,0.07263572]
[1725724959417,0.191255,54794.0,54793.0,0.07263572]
[1725724959614,0.091257,54793.0,54792.0,0.07263572]
[1725724960518,0.091258,54792.0,54791.0,0.07263572]
[1725724962807,0.092258,54792.0,54791.0,0.07263572]
[1725724964303,0.09126,54791.0,54790.0,0.07263572]
[1725724964712,0.191,54792.0,54786.0,0.09074978]
[1725724964713,0.091262,54790.0,54789.0,0.07263572]
[1725724965215,0.091263,54789.0,54785.0,0.14034978]
[1725724965512,0.01721713,54792.0,54788.0,0.281265]
[1725724965718,0.09126,54791.0,54790.0,0.07251802]
[1725724966414,0.09126,54791.0,54790.0,0.26251802]
[1725724966613,0.09126,54791.0,54790.0,0.19]
[1725724967417,0.09126,54791.0,54790.0,0.26251666]
[1725724968519,0.09126,54791.0,54790.0,0.07251666]
[1725724968916,0.09426,54791.0,54790.0,0.07251666]
[1725724970125,0.11140023,54791.0,54790.0,0.07251666]
[1725724971417,0.20266023,54791.0,54790.0,0.07251666]
[1725724971624,0.091262,54790.0,54788.0,0.07251666]
[1725724971924,0.091263,54789.0,54788.0,0.07251666]
[1725724972821,0.091265,54788.0,54787.0,0.07251666]
[1725724973022,0.091267,54787.0,54786.0,0.07251666]
[1725724974310,0.09127,54786.0,54783.0,0.18202278]
[1725724975817,0.09127,54786.0,54784.0,0.0482]
[1725724976015,0.09127,54785.0,54784.0,0.0482]
[1725724978121,0.09127,54785.0,54784.0,0.139472]
[1725724978319,0.2916644,54856.0,54784.0,0.139472]
[1725724978320,0.0454,54797.0,54784.0,0.23527552]
[1725724978523,0.19,54795.0,54793.0,0.05441909]
[1725724978717,0.0454,54797.0,54793.0,0.05441833]
[1725724978718,0.091255,54794.0,54793.0,0.05441833]
[1725724979021,0.091258,54793.0,54792.0,0.091258]
[1725724979212,0.01710484,54797.0,54795.0,0.091253]
[1725724979413,0.091243,54802.0,54795.0,0.091253]
[1725724979622,0.091243,54802.0,54797.0,0.05442387]
[1725724980825,0.091248,54798.0,54797.0,0.05442387]
[1725724981423,0.091251,54797.0,54795.0,0.16381179]
[1725724982016,0.091251,54797.0,54795.0,0.091253]
[1725724982217,0.091251,54797.0,54795.0,0.16381179]
[1725724983019,0.099251,54797.0,54795.0,0.16381179]
[1725724984323,0.008,54797.0,54796.0,0.35381079]
[1725724984520,0.008,54797.0,54796.0,0.42030708]
[1725724985323,0.008,54797.0,54796.0,0.51105576]
[1725724985624,0.091222,54814.0,54802.0,0.091242]
[1725724985830,0.091222,54814.0,54813.0,0.19]
[1725724986034,0.01715912,54815.0,54813.0,0.19]
[1725724986331,0.0475,54822.0,54814.0,0.045]
[1725724986514,0.0475,54822.0,54816.0,0.091218]
[1725724986515,0.091213,54820.0,54816.0,0.091218]
[1725724986714,0.0475,54822.0,54816.0,0.091218]
[1725724986919,0.091217,54818.0,54816.0,0.14555046]
[1725724987119,0.06532783,54822.0,54815.0,0.05433246]
[1725724987325,0.06532783,54822.0,54814.0,0.0909]
[1725724987527,0.19,54820.0,54814.0,0.0909]
[1725724988320,0.19,54817.0,54810.0,0.05433246]
[1725724988629,0.204,54814.0,54806.0,0.05433246]
[1725724988823,0.091233,54807.0,54805.0,0.05433246]
[1725724989025,0.014,54814.0,54803.0,0.05433246]
[1725724989026,0.091238,54804.0,54803.0,0.05433246]
[1725724989227,0.09024,54803.0,54802.0,0.05433246]
[1725724989426,0.091247,54799.0,54798.0,0.12677574]
[1725724989617,0.091248,54798.0,54796.0,0.05433246]
[1725724989929,0.091248,54798.0,54794.0,0.05433246]
[1725724990129,0.090248,54798.0,54794.0,0.05433246]
[1725724990522,0.090248,54798.0,54793.0,0.14558846]
[1725724990832,0.090248,54798.0,54794.0,0.05433246]
[1725724991832,0.090248,54798.0,54796.0,0.002]
[1725724992027,0.19,54800.0,54796.0,0.002]
[1725724992028,0.09125,54797.0,54796.0,0.002]
[1725724992533,0.09125,54797.0,54794.0,0.05433246]
[1725724992833,0.09125,54797.0,54794.0,0.05533246]
[1725724993330,0.09125,54797.0,54794.0,0.05433246]
[1725724993526,0.091252,54796.0,54794.0,0.05433246]
[1725724995429,0.091252,54796.0,54792.0,0.14559046]
[1725724995838,0.091252,54796.0,54793.0,0.05433246]
[1725724996522,0.092252,54796.0,54793.0,0.05433246]
[1725724997026,0.092252,54796.0,54792.0,0.14559046]
[1725724997431,0.091254,54795.0,54792.0,0.14559046]
[1725724997737,0.091255,54794.0,54792.0,0.05433246]
[1725724997928,0.091255,54794.0,54789.0,0.16944328]
[1725724997929,0.091255,54794.0,54793.0,0.05433246]
[1725724998536,0.001,54796.0,54791.0,0.19]
[1725724998839,0.01717252,54801.0,54789.0,0.097]
[1725724998840,0.01717252,54801.0,54795.0,0.19]
[1725724999142,0.091237,54805.0,54803.0,0.091239]
[1725724999330,0.091237,54805.0,54804.0,0.0495]
[1725725000439,0.101237,54805.0,54804.0,0.0495]
[1725725000735,0.101237,54805.0,54804.0,0.2395]
[1725725000931,0.01,54805.0,54804.0,0.330738]
[1725725002037,0.01,54805.0,54804.0,0.38508924]
[1725725002438,0.011,54805.0,54804.0,1.53348924]
[1725725002635,0.09122,54816.0,54812.0,0.091223]
[1725725002838,0.091222,54815.0,54814.0,0.19]
[1725725003729,0.091222,54815.0,54814.0,0.2394]
[1725725005129,0.009,54816.0,54814.0,0.330622]
[1725725005741,0.136315,54818.0,54814.0,0.330622]
[1725725005940,0.136315,54818.0,54815.0,0.09122]
[1725725007042,0.136315,54818.0,54817.0,0.19]
[1725725007244,0.091209,54822.0,54819.0,0.091213]
[1725725007431,0.091209,54822.0,54821.0,0.19]
[1725725007626,0.10909659,54822.0,54821.0,0.19]
[1725725009139,0.091209,54822.0,54821.0,0.28121]
[1725725009745,0.098209,54822.0,54821.0,0.28221]
[1725725010432,0.007,54822.0,54821.0,0.28221]
[1725725010743,0.091202,54826.0,54825.0,0.091203]
[1725725010941,0.091202,54826.0,54825.0,0.281203]
[1725725011139,0.0929,54833.0,54821.0,0.001]
[1725725011140,0.19,54830.0,54821.0,0.092209]
[1725725011537,0.091208,54822.0,54821.0,0.001]
[1725725015348,0.091208,54822.0,54821.0,0.09221]
[1725725016332,0.091208,54822.0,54821.0,0.001]
[1725725017840,0.091208,54822.0,54821.0,0.09221]
[1725725024056,0.091208,54822.0,54821.0,0.001]
[1725725029249,0.091208,54822.0,54821.0,0.05529696]
[1725725029450,0.091208,54822.0,54821.0,0.001]
[1725725031555,0.2363,54823.0,54820.0,0.0544126]
[1725725032464,0.091212,54820.0,54819.0,0.07239595]
[1725725032658,0.091214,54819.0,54817.0,0.091217]
[1725725033155,0.091214,54819.0,54818.0,0.091215]
[1725725033348,0.091214,54819.0,54818.0,0.32093491]
[1725725035366,0.091214,54819.0,54818.0,0.32193491]
[1725725035558,0.091214,54819.0,54818.0,0.32196499]
[1725725035852,0.091214,54819.0,54818.0,0.32196738]
[1725725036054,0.091214,54819.0,54818.0,0.32196363]
[1725725036254,0.091214,54819.0,54818.0,0.23121543]
[1725725037357,0.091214,54819.0,54818.0,0.001]
[1725725038046,0.091214,54819.0,54818.0,0.09077952]
[1725725038354,0.091214,54819.0,54818.0,0.23078249]
[1725725038754,0.091214,54819.0,54818.0,0.23121797]
[1725725038959,0.091214,54819.0,54818.0,0.23021797]
[1725725040257,0.091214,54819.0,54818.0,0.13900297]
[1725725040562,0.281208,54822.0,54817.0,0.0908049]
[1725725040752,0.281208,54822.0,54812.0,0.136524]
[1725725040753,0.091217,54817.0,54816.0,0.0908049]
[1725725041068,0.091217,54817.0,54816.0,0.22981413]
[1725725041763,0.090217,54817.0,54816.0,0.32103213]
[1725725042561,0.091213,54820.0,54818.0,0.091214]
[1725725042756,0.091213,54820.0,54819.0,0.091213]
[1725725043061,0.091207,54823.0,54821.0,0.09121]
[1725725043264,0.091207,54823.0,54822.0,0.07262483]
[1725725043461,0.091208,54822.0,54821.0,0.09121]
[1725725043964,0.091211,54821.0,54818.0,0.18200169]
[1725725044263,0.091211,54821.0,54819.0,0.22978524]
[1725725044458,0.091211,54821.0,54819.0,0.09078669]
[1725725044858,0.091211,54821.0,54820.0,0.07261995]
[1725725045063,0.091211,54821.0,54818.0,0.091215]
[1725725045064,0.091211,54821.0,54818.0,0.18200169]
[1725725045267,0.091211,54821.0,54819.0,0.091213]
[1725725045464,0.092211,54821.0,54819.0,0.18199969]
[1725725046170,0.092211,54821.0,54820.0,0.09078669]
[1725725046357,0.092211,54821.0,54820.0,0.32099471]
[1725725046666,0.092211,54821.0,54820.0,0.23020802]
[1725725047070,0.091211,54821.0,54820.0,0.23020802]
[1725725048667,0.091211,54821.0,54820.0,0.32295329]
[1725725048859,0.091211,54821.0,54820.0,0.23220802]
[1725725049267,0.091211,54821.0,54820.0,0.32295596]